Cogmind - Beta 13 @@@ ROGUE MODE // 2024.04.14 @ 21:19:09 Player: GR4C3 Result: Destroyed by CC-0BF(R) with Subdweller Machine Gun Performance ------------- Evolutions (0) 0 Regions Visited (2) 400 Robots Destroyed (18) 90 Value Destroyed (390) 390 Prototype IDs (1) 20 Alien Tech Used (0) 0 Bonus (0) 0 TOTAL SCORE: 900 Bonus ------- None Cogmind --------- Core Integrity 0/250 Matter 277/300 Energy 280/280 System Corruption 0% Temperature Cool (0) Movement Walking (190) Ox1 Location -10/Subcaves Parts ------- > --- POWER (1) -------- Heavy Ion Engine > --- PROPULSION (2) --- Aluminum Leg Aluminum Leg > --- UTILITY (2) ------ Small Storage Unit Terrain Scanner > --- WEAPON (2) ------- Battle Rifle Subdweller Shrapnel Launcher > --- INVENTORY (8) ---- Subdweller Power Source Aluminum Leg Cooling System Heavy EM Pulse Gun Heavy EM Pulse Gun Small Laser Light Assault Rifle Mining Laser Peak State ------------ > --- POWER ------------ Heavy Ion Engine > --- PROPULSION ------- Aluminum Leg Aluminum Leg > --- UTILITY ---------- Small Storage Unit Terrain Scanner > --- WEAPON ----------- Heavy EM Pulse Gun Battle Rifle > --- INVENTORY -------- Ion Engine Aluminum Leg Cooling System Heavy EM Pulse Gun Small Laser Small Laser Light Assault Rifle Mining Laser [Rating: 12] Favorites ----------- Power Heavy Ion Engine Engine Heavy Ion Engine Propulsion Aluminum Leg Leg Aluminum Leg Utility Small Storage Unit Device Terrain Scanner Storage Small Storage Unit Processor Visual Processing Unit Weapon Small Laser Energy Gun Small Laser Ballistic Gun Battle Rifle Launcher Subdweller Shrapnel Launcher Special Weapon Mining Laser Build | -11 -10 -10 ------- Run | Yrd Mat Sub Slots Evolved . | . . . Power . | . . . Propulsion . | . . . Utility . | . . . Weapon . | . . . Parts Attached 26 | 7 13 6 Power 5 | 1 2 2 Engine 5 | 1 2 2 Core . | . . . Reactor . | . . . Propulsion 6 | 2 4 . Treads . | . . . Leg 6 | 2 4 . Wheel . | . . . Hover . | . . . Flight . | . . . Utility 4 | 2 2 . Device 2 | 1 1 . Storage 1 | 1 . . Processor 1 | . 1 . Hackware . | . . . Protection . | . . . Artifact . | . . . Weapon 11 | 2 5 4 Energy Gun 6 | 2 3 1 Energy Cannon . | . . . Ballistic Gun 2 | . 1 1 Ballistic Cannon . | . . . Launcher 1 | . . 1 Special Weapon 2 | . 1 1 Impact Weapon . | . . . Slashing Weapon . | . . . Piercing Weapon . | . . . Special Melee Weapon . | . . . Unidentified Prototypes 1 | . 1 . Parts Lost 2 | . 2 . Power 1 | . 1 . Propulsion 1 | . 1 . Utility . | . . . Weapon . | . . . Highest Loss Streak 2 | . 2 . To Critical Strikes . | . . . Average Slot Usage (%) 99 | . 99 100 Engine 13 | . 13 14 Leg 27 | . 27 28 Device 10 | . 8 14 Storage 14 | . 14 14 Processor 3 | . 5 . Energy Gun 22 | . 26 13 Ballistic Gun 5 | . 1 13 Naked Turns . | . . . Heaviest Build 24 | 14 18 24 Greatest Support 20 | 20 20 20 Greatest Overweight (x) 1 | . 1 1 Average Overweight (x) . | . . . Largest Inventory Capacity 8 | 8 8 8 Average Capacity 7 | 7 8 8 Most Carried 8 | 5 8 8 Average Carried 6 | 2 5 7 Final Capacity 8 | 8 8 8 Final Carried 8 | 2 8 8 Class Distribution -------------------- 100% | Mutant Dominant Class ---------------- Mutant | -10/Materials Mutant | -10/Subcaves Resources | -11 -10 -10 ----------- Run | Yrd Mat Sub Matter Collected 487 | 270 90 127 Remotely . | . . . Salvage Created 586 | 173 287 126 Parts 41 | 15 18 8 Haulers Intercepted . | . . . Recyclers Shooed 1 | 1 . . Parts Field Recycled . | . . . Retrieved Matter . | . . . Parts Self-Destructed 5 | . . 5 Prevented . | . . . Kills | -11 -10 -10 ------- Run | Yrd Mat Sub Combat Hostiles Destroyed 11 | . 8 3 Guns 11 | . 8 3 Classes Destroyed 6 | 2 3 1 Tunneler 5 | 5 . . Recycler 1 | 1 . . Watcher 1 | . 1 . Swarmer 3 | . 3 . Grunt 5 | . 5 . Subdweller 3 | . . 3 Best Kill Streak 5 | 5 2 2 Combat Bots Only 2 | . 2 2 Max Kills in Single Turn 2 | 2 1 1 Gunslinging . | . . . Exploded . | . . . Melee . | . . . Uniques/NPCs Destroyed . | . . . Combat | -11 -10 -10 -------- Run | Yrd Mat Sub Hostile Shots Fired 82 | . 59 23 Missed 20 | . 10 10 Damage Taken 1030 | . 692 338 Core 260 | . 164 96 Absorbed by Shields . | . . . Regen/Repaired (Parts) 60 | . 60 . Core Remaining (%) 100 | 100 . . Volleys Fired 71 | 10 46 15 Largest 2 | 2 2 2 Hottest 100 | 90 100 100 Shots Fired 131 | 20 83 28 Gun 127 | 20 82 25 Cannon . | . . . Launcher 1 | . . 1 Special 3 | . 1 2 Kinetic 15 | . 1 14 Thermal 98 | 20 76 2 Explosive . | . . . Electromagnetic 18 | . 6 12 Robot Hit Streak 9 | 3 9 6 Robot Miss Streak 4 | 3 4 3 Penetration Max . | . . . Secondary Targets . | . . . Shots Hit Robots 74 | 11 48 15 Core Hits 33 | 7 20 6 Critical Kills . | . . . Critical Parts Destroyed . | . . . Critical Strikes 2 | 2 . . Burn 2 | 2 . . Melee Attacks . | . . . Impact . | . . . Slashing . | . . . Piercing . | . . . Sneak Attacks . | . . . Combat Hostiles . | . . . Follow-up Attacks . | . . . Damage Inflicted 1077 | 143 662 272 Guns 966 | 143 610 213 Cannons . | . . . Explosions 96 | . 37 59 Melee . | . . . Ramming 15 | . 15 . Kinetic 191 | . 8 183 Thermal 721 | 143 578 . Explosive . | . . . Electromagnetic 150 | . 61 89 Impact . | . . . Slashing . | . . . Piercing . | . . . Highest Corruption . | . . . Average Corruption . | . . . Corruption Purged . | . . . Corruption Blocked . | . . . Overload Shots . | . . . Overflow Damage 7 | . 7 . Projectiles . | . . . Explosions 7 | . 7 . Melee . | . . . Knockbacks . | . . . Impact . | . . . Kinetic . | . . . Secondary . | . . . Self-Inflicted Damage 37 | . . 37 Shots 1 | . . 1 Rammed . | . . . Targets Rammed 3 | . 3 . Kicked 3 | . 3 . Crushed . | . . . Highest Temperature 338 | 144 338 2 Average Temperature 123 | 57 140 2 Received Heat Transfer 396 | . 330 66 Effects 4 | . 4 . Interference 4 | . 4 . Siege Activations . | . . . Robots Corrupted . | . . . Combat Hostiles . | . . . Parts Fried . | . . . Impact Corruptions . | . . . Robots Melted . | . . . Combat Hostiles . | . . . Parts Melted 3 | 2 . 1 Heat Transferred 2020 | 544 1476 . Parts Sabotaged . | . . . Parts Stolen . | . . . Parts Stripped . | . . . Power Chain Reactions 1 | . 1 . Alert | -11 -10 -10 ------- Run | Yrd Mat Sub Peak Influence 176 | 30 176 . Initial 19 | . 19 . Average 90 | 12 102 . Maximum Alert Level . | . . . Low Security (%) 100 | 100 100 . Level 1 . | . . . Level 2 . | . . . Level 3 . | . . . Level 4 . | . . . Level 5 . | . . . High Security . | . . . Max Security . | . . . Squads Dispatched 1 | . 1 . Investigation 1 | . 1 . Extermination . | . . . Reinforcement . | . . . Assault . | . . . Garrison . | . . . Intercept . | . . . Searches Triggered . | . . . Construction Impeded . | . . . Haulers Reinforced . | . . . Active Scanning Responses . | . . . Cargo Convoy Interrupts . | . . . Stealth | -11 -10 -10 --------- Run | Yrd Mat Sub Distress Signals 1 | . 1 . Communications Jammed . | . . . Distress Signals . | . . . Times Spotted 20 | . 15 5 Peak Tracking Total 5 | . 5 2 Tactical Retreats 2 | . 1 1 Traps | -11 -10 -10 ------- Run | Yrd Mat Sub Traps Triggered 3 | . 3 . Indirectly . | . . . Trap Hack Attempts . | . . . Triggered . | . . . Disarmed . | . . . Reprogrammed . | . . . Reused . | . . . Traps Extracted . | . . . Installed . | . . . Triggered . | . . . Machines | -11 -10 -10 ---------- Run | Yrd Mat Sub Machines Disabled . | . . . Max in Single Turn . | . . . Machines Repaired . | . . . Machines Dismantled . | . . . Machines Sabotaged . | . . . Overloaded Fab Kills . | . . . Hacking | -11 -10 -10 --------- Run | Yrd Mat Sub Machines Accessed 2 | . 2 . Terminals 1 | . 1 . Fabricators . | . . . Repair Stations 1 | . 1 . Recycling Units . | . . . Scanalyzers . | . . . Garrison Access . | . . . Total Hacks 5 | . 5 . Successful 4 | . 4 . Failed 1 | . 1 . Catastrophic . | . . . Database Lockouts . | . . . Manual . | . . . Terminals 1 | . 1 . Fabricators . | . . . Repair Stations 4 | . 4 . Recycling Units . | . . . Scanalyzers . | . . . Garrison Access . | . . . Terminal Hacks 1 | . 1 . Terminal Index 1 | . 1 . Fabricator Hacks . | . . . Repair Station Hacks 3 | . 3 . Scan Component 2 | . 2 . Repair 1 | . 1 . Recycling Unit Hacks . | . . . Scanalyzer . | . . . Garrison Access Hacks . | . . . Unauthorized Hacks . | . . . Terminals . | . . . Fabricators . | . . . Repair Stations . | . . . Recycling Units . | . . . Scanalyzers . | . . . Garrison Access . | . . . Data Cores Recovered . | . . . Used . | . . . Hacking Detections 1 | . 1 . Full Trace Events . | . . . Feedback Events . | . . . Feedback Blocked . | . . . Robot Schematics Acquired . | . . . Robots Built . | . . . Authchips . | . . . Time . | . . . Total Robot Build Rating . | . . . Part Schematics Acquired . | . . . Parts Built . | . . . Authchips . | . . . Time . | . . . Total Part Build Rating . | . . . Parts Repaired 1 | . 1 . Time 26 | . 26 . Parts Recycled . | . . . Recycled Matter . | . . . Retrieved Matter . | . . . Retrieved Components . | . . . Parts Scanalyzed . | . . . Part Schematics Acquired . | . . . Parts Damaged . | . . . Bothacking | -11 -10 -10 ------------ Run | Yrd Mat Sub Used RIF Installer . | . . . Robots Hacked . | . . . Non-combat . | . . . Combat . | . . . Robot Hacks Applied . | . . . Relay Couplers Released . | . . . Fabnet Peak Effective % . | . . . Robots Rewired . | . . . Allies Hacked . | . . . Hacks Repelled . | . . . Allies | -11 -10 -10 -------- Run | Yrd Mat Sub Total Allies . | . . . Largest Group . | . . . Highest-Rated Group . | . . . Highest-Rated Ally . | . . . Total Orders . | . . . Ally Attacks . | . . . Total Damage . | . . . Kills . | . . . Allies Corrupted . | . . . Allies Melted . | . . . Intel | -11 -10 -10 ------- Run | Yrd Mat Sub Robot Analysis Total . | . . . Derelict Logs Recovered 1 | . . 1 Drone Launches . | . . . Drone Recoveries . | . . . Exploration | -11 -10 -10 ------------- Run | Yrd Mat Sub Turns Passed 1051 | 95 635 321 Spaces Moved 616 | 48 366 202 Core 11 | 11 . . Treads . | . . . Legs 605 | 37 366 202 Wheels . | . . . Hover . | . . . Flight . | . . . Fastest Speed 50 | 50 120 120 Average Speed 119 | 103 120 121 Slowest Speed 190 | 120 190 190 Overloaded Moves . | . . . Propulsion Burnouts . | . . . Robots Hopped . | . . . Cave-ins Triggered . | . . . Exploration Rate (%) 20 | 4 43 14 Regions Visited 2 Branch Regions 1 Pre-discovered Areas 1 | . . 1 Known Exits Taken . | . . . Unknown Exits Taken 2 | 1 1 . Scrap Searched . | . . . Spaces Dug 1 | . 1 . Terrain Destroyed 6 | . 6 . Melee . | . . . Projectile 1 | . 1 . AOE 5 | . 5 . Terrain Rammed . | . . . Walls Destroyed . | . . . Machines Disabled . | . . . Actions | -11 -10 -10 --------- Run | Yrd Mat Sub Total 789 | 72 471 246 Wait 45 | . 28 17 Move 614 | 47 365 202 Hop . | . . . Pick Up 24 | 8 13 3 Fast Attach 1 | 1 . . Attach 8 | 6 2 . Detach . | . . . Swap 17 | . 11 6 Drop 6 | . 3 3 Fire 71 | 10 46 15 Melee . | . . . Ram . | . . . Kick 3 | . 3 . Crush . | . . . Escape Stasis . | . . . Rewire . | . . . Trap . | . . . Miscellaneous . | . . . Route ------- -11/Scrapyard -10/Materials (discovered 3 exits: [*Mat] / [*Min] / [*Sub]) -10/Subcaves History --------- Turn | Location | Event 19 | -11/Scrapyard | Discovered new exit (range 14) 96 | -11/Scrapyard | Entered Materials 274 | -10/Materials | Core integrity fell below 50% 310 | -10/Materials | Build established: Mutant 369 | -10/Materials | Discovered new exit (range 8) 532 | -10/Materials | Discovered new exit (range 8) 686 | -10/Materials | Repaired Aluminum Leg 708 | -10/Materials | Discovered new exit (range 11) 731 | -10/Materials | Entered Subcaves 735 | -10/Subcaves | Learned 4 Materials zone layouts 748 | -10/Subcaves | Shifting Twisted Machinery released Mak. System Shield 750 | -10/Subcaves | Shifting Twisted Machinery released Battle Rifle 850 | -10/Subcaves | Core integrity fell below 20% 915 | -10/Subcaves | Learned location of Zion (-6) 915 | -10/Subcaves | Met a Zionite searching for "candidates" 1050 | -10/Subcaves | Disturbed a concealed Subdweller 1050 | -10/Subcaves | Disturbed a concealed Subdweller 1052 | -10/Subcaves | Destroyed by CC-0BF(R) with Subdweller Machine Gun Last Messages --------------- 00894_ 1L-XXX(z): "She is not going to be happy we haven't found any suitable candidates yet." 00915_ 1L-XXX(z): "Hey you! It's really dangerous down here, I feel that you could die at any moment. For your health and safety might I suggest a trip to Zion?" World map updated: -6/Zion. 00941_ Acquired 5 matter. 00948_ Acquired 8 matter. 00950_ 6W-P4R(u) builds Twisted Machinery. 00953_ Acquired 14 matter. 00959_ GT-JSW(u) builds Twisted Machinery. 01021_ 69-5U9(R) destroyed. 01029_ RM-ZZ1(R) destroyed. 01032_ Acquired 9 matter. 01037_ Acquired 7 matter. 01039_ Dropped Sml. Laser. 01040_ Acquired Sub. Shrapnel Launcher. 01042_ Acquired 10 matter. 01050_ KZ-O0E(R) angrily emerges from the Twisted Machinery. 01050_ CC-0BF(R) angrily emerges from the Twisted Machinery. Map ----- +----------------------------------------------------+ | ?????????????????????????????????????????????????? | | ?????????????????????????????????????????????????? | | ?????????????????????????????????????????????????? | | ?????????????????????????????????????????????????? | | ?????????????????????????????????????????????????? | | ?????????????????????????????????????????? ??????? | | ????????????????????????????????????????? ??????? | | ????????????????????????????????????????? ?????? | | ????????????????????????????????????????? #????? | | ??????????????????????????????##?????????# #????? | | ??????????????????????????????????#??????# ""????? | | ????????????????????????????????????????##" "????? | | ???????????????????????????????????????##"""#????? | | ???????????????????????????????#???????#""""#????? | | ??????????????????????????????#????????# """##???? | | ?????????????????????#???????#??????????# " ####" | | ?????????????????#?????????????????????## " """ | | ?????????????????????#########????#?????# """ """ | | ?????????????????????# ########??## """" """ | | ????????????????#???## ;;;;;;;#### """ "" | | ?????????????????#?## $ " | | ????????????????????# $RR | | ??????????????????#?# | | ??????????????????#?# ;; ##### ##### | | ????????????????????# ;;;#####???####???? | | ????????????????????# @ #?????????????????? | | ????????????????????#### #?????????????????? | | ???????????????????????#[ # ###???#??#??????????? | | ???????????????????????#!%##?#?????????????#?????? | | ?????????????????????#?# &##??#??????????????????? | | ??????????????#???#????#; ;##?#??????????????????? | | ?????????####????#?#??## !; ##??#??????#??#??????? | | ?????????# #???????##;; ;""#??#?#??????????????? | | ?????????# ##?????# ; "#????#??????????????? | | ?????????? #?????# ; "#?#???##????????????? | | ???????????# ?????##; "#????#??????????????? | | ???????????# ????## ""#???#??#????????????? | | ??????????## ##?## ;;###??##?#?????????????? | | ?????????## ### ###?????????????????????? | | ??????# #### #???????????????????????? | | " ??#### #??#####????????? ???????????? | | " ?????# ##???## #?????????????????????? | | ????###### #??### #?????????????????????? | | !""???#?### ###### ##??#?????? ??????????? | | ""#?????# #?### ######??? ?????????? | | ######## ### ### ?????????? | | # # # # # #?????????? | | " " #### #####?????????? | | " """"" ####### ##?????????????? | | "#????# ##???# ###??????????????? | +----------------------------------------------------+ Best States ------------- Heat Dissipation 25 Energy Generation 14 Energy Capacity 280 Matter Stores 300 Matter Capacity 300 Sight Range 18 Terrain Scan Range 14 Terrain Scan Density 10 Evasion (%) 55 Item Schematics ----------------- None Robot Schematics ------------------ None Fabricated ------------ Nothing Alien Tech Used ----------------- None Achievements -------------- None Challenges ------------ None Game ------ Seed QuantumServoStripper Manual? 0 Play Time 00:20:03 Cumulative 37.4 hours Start 2024.04.14 @ 20:47:10 End 2024.04.14 @ 21:19:09 Sessions 1 Manual Loads 0 Difficulty Rogue Special Mode None Game No. 28 Rogue 14 Adventurer 14 Explorer 0 Win Type - Total 0 Types 0/0/0/0/0/0/0/0/0 Lore% 19 Gallery% 30 Achievement% 19 Wizard Run 0 Options --------- Layout 2 ASCII 0 Keyboard 0 Movement Mouse Keybinds 0 Fullscreen 2 Font 20/SmallcapsGlow Map View 31x34 Zoom Use 83% Tactical HUD 1 Map Filters NONE Filters NONE Steam 1 RUN: 262e52f6-61dc-4f49-8be5-2629af0f1345